[Event "*** Titled Tuesday Blitz"]
[Site "Chess.com"]
[Date "2020.05.19"]
[Round "10"]
[White "Lovinski"]
[Black "ErikBlomqvist"]
[Result "0-1"]
[WhiteElo "2417"]
[BlackElo "2290"]
[TimeControl "180+1"]
[EndTime "13:54:44 PDT"]
[Termination "ErikBlomqvist won by checkmate"]

1. Nf3 {[%clk 0:03:00.9]} 1... c5 {[%clk 0:02:58.6]} 2. g3 {[%clk 0:03:00.8]}
2... b6 {[%clk 0:02:56.1]} 3. c4 {[%clk 0:02:58.2]} 3... Bb7 {[%clk 0:02:57]} 4.
Bg2 {[%clk 0:02:58.4]} 4... Nf6 {[%clk 0:02:56.6]} 5. O-O {[%clk 0:02:58.7]}
5... e6 {[%clk 0:02:56.5]} 6. Nc3 {[%clk 0:02:49.7]} 6... Be7 {[%clk 0:02:54.6]}
7. d4 {[%clk 0:02:50]} 7... cxd4 {[%clk 0:02:55.5]} 8. Qxd4 {[%clk 0:02:50.3]}
8... O-O {[%clk 0:02:55.8]} 9. Rd1 {[%clk 0:02:47.9]} 9... Qc8 {[%clk
0:02:54.4]} 10. b3 {[%clk 0:02:46.9]} 10... Na6 {[%clk 0:02:45.4]} 11. Bb2
{[%clk 0:02:46.9]} 11... Nc5 {[%clk 0:02:43.6]} 12. Rac1 {[%clk 0:02:46]} 12...
d6 {[%clk 0:02:40.1]} 13. Qd2 {[%clk 0:02:37.9]} 13... Rd8 {[%clk 0:02:37.7]}
14. b4 {[%clk 0:02:33.2]} 14... Nce4 {[%clk 0:02:35.5]} 15. Nxe4 {[%clk
0:02:33.3]} 15... Bxe4 {[%clk 0:02:33.7]} 16. Bf1 {[%clk 0:02:22.5]} 16... h6
{[%clk 0:02:25.6]} 17. Nd4 {[%clk 0:02:13.8]} 17... e5 {[%clk 0:02:10.3]} 18.
Nb5 {[%clk 0:01:45.3]} 18... Qf5 {[%clk 0:01:39.5]} 19. Nc7 {[%clk 0:01:30.4]}
19... Rac8 {[%clk 0:01:38.5]} 20. Nd5 {[%clk 0:01:30.8]} 20... Nxd5 {[%clk
0:01:18.6]} 21. cxd5 {[%clk 0:01:31.7]} 21... Bg5 {[%clk 0:01:18]} 22. f4 {[%clk
0:00:53]} 22... exf4 {[%clk 0:01:14.6]} 23. h4 {[%clk 0:00:43.8]} 23... fxg3
{[%clk 0:01:14.3]} 24. hxg5 {[%clk 0:00:43.8]} 24... Qf2# {[%clk 0:01:14.2]} 0-1

[Event "*** Titled Tuesday Blitz"]
[Site "Chess.com"]
[Date "2020.05.19"]
[Round "10"]
[White "Savva09022009"]
[Black "Parkas"]
[Result "0-1"]
[WhiteElo "2400"]
[BlackElo "2297"]
[TimeControl "180+1"]
[EndTime "13:54:50 PDT"]
[Termination "Parkas won by resignation"]

1. d4 {[%clk 0:03:00.9]} 1... Nf6 {[%clk 0:02:59.9]} 2. Nc3 {[%clk 0:03:01.2]}
2... d5 {[%clk 0:02:50.6]} 3. Bf4 {[%clk 0:03:00.3]} 3... a6 {[%clk 0:02:49.5]}
4. e3 {[%clk 0:02:58.7]} 4... Bf5 {[%clk 0:02:49.7]} 5. Nf3 {[%clk 0:02:59.6]}
5... e6 {[%clk 0:02:50.1]} 6. Bd3 {[%clk 0:03:00.1]} 6... Bxd3 {[%clk
0:02:49.9]} 7. Qxd3 {[%clk 0:03:00.7]} 7... c5 {[%clk 0:02:46.1]} 8. O-O {[%clk
0:03:01.4]} 8... c4 {[%clk 0:02:46.1]} 9. Qe2 {[%clk 0:03:01.1]} 9... b5 {[%clk
0:02:41.3]} 10. e4 {[%clk 0:03:01.4]} 10... b4 {[%clk 0:02:41.2]} 11. e5 {[%clk
0:02:47.7]} 11... bxc3 {[%clk 0:02:40.1]} 12. exf6 {[%clk 0:02:46.1]} 12... cxb2
{[%clk 0:02:26.9]} 13. fxg7 {[%clk 0:02:45.1]} 13... Bxg7 {[%clk 0:02:26.3]} 14.
Rab1 {[%clk 0:02:44]} 14... c3 {[%clk 0:02:22.4]} 15. Be5 {[%clk 0:02:41.5]}
15... Rg8 {[%clk 0:02:05.2]} 16. Qe3 {[%clk 0:02:38.1]} 16... Bxe5 {[%clk
0:01:47.8]} 17. Nxe5 {[%clk 0:02:35.2]} 17... Qg5 {[%clk 0:01:41.7]} 18. Qh3
{[%clk 0:02:30.3]} 18... Nd7 {[%clk 0:01:31.5]} 19. f4 {[%clk 0:02:23.5]} 19...
Qg7 {[%clk 0:01:31]} 20. Rf2 {[%clk 0:02:14.4]} 20... Rc8 {[%clk 0:01:28.4]} 21.
Nxd7 {[%clk 0:02:04.5]} 21... Kxd7 {[%clk 0:01:26.3]} 22. f5 {[%clk 0:02:05.4]}
22... Qxd4 {[%clk 0:01:18.8]} 23. fxe6+ {[%clk 0:02:04]} 23... fxe6 {[%clk
0:01:19.7]} 24. Qxh7+ {[%clk 0:02:03.8]} 24... Kd6 {[%clk 0:01:17]} 25. Re1
{[%clk 0:02:02.9]} 25... Rcf8 {[%clk 0:01:10.2]} 26. Rxe6+ {[%clk 0:01:41.5]}
26... Kxe6 {[%clk 0:01:09.9]} 27. Qh6+ {[%clk 0:01:40.8]} 27... Kd7 {[%clk
0:00:57.2]} 28. Qh7+ {[%clk 0:01:39.7]} 28... Kc6 {[%clk 0:00:53.7]} 29. Qh6+
{[%clk 0:01:38.5]} 29... Kb5 {[%clk 0:00:52.4]} 0-1

[Event "*** Titled Tuesday Blitz"]
[Site "Chess.com"]
[Date "2020.05.19"]
[Round "10"]
[White "Gandrade2"]
[Black "NotFischer"]
[Result "1-0"]
[WhiteElo "2036"]
[BlackElo "2086"]
[TimeControl "180+1"]
[EndTime "13:54:51 PDT"]
[Termination "Gandrade2 won by checkmate"]

1. b3 {[%clk 0:03:00.9]} 1... Nf6 {[%clk 0:02:44]} 2. Bb2 {[%clk 0:03:00.8]}
2... d6 {[%clk 0:02:24.1]} 3. e3 {[%clk 0:03:00.2]} 3... e5 {[%clk 0:02:20.7]}
4. d4 {[%clk 0:02:58.6]} 4... exd4 {[%clk 0:02:19.4]} 5. Qxd4 {[%clk 0:02:59.5]}
5... Be7 {[%clk 0:02:19.2]} 6. Nf3 {[%clk 0:02:58.5]} 6... O-O {[%clk
0:02:16.5]} 7. Nc3 {[%clk 0:02:55.2]} 7... Nc6 {[%clk 0:02:14.8]} 8. Qd2 {[%clk
0:02:55.7]} 8... Bg4 {[%clk 0:02:05.4]} 9. Bb5 {[%clk 0:02:53.9]} 9... Bxf3
{[%clk 0:01:54.8]} 10. gxf3 {[%clk 0:02:54.8]} 10... Ne5 {[%clk 0:01:55.2]} 11.
Be2 {[%clk 0:02:52.4]} 11... Qd7 {[%clk 0:01:51.6]} 12. O-O-O {[%clk 0:02:51.1]}
12... a5 {[%clk 0:01:41.4]} 13. Rhg1 {[%clk 0:02:11.1]} 13... Rfd8 {[%clk
0:01:31.5]} 14. h4 {[%clk 0:02:09.5]} 14... Bf8 {[%clk 0:01:31.1]} 15. f4 {[%clk
0:02:09.6]} 15... Nc6 {[%clk 0:01:22.8]} 16. Bb5 {[%clk 0:02:08.9]} 16... Qf5
{[%clk 0:01:18.4]} 17. Rg5 {[%clk 0:02:05.2]} 17... Qe6 {[%clk 0:01:06]} 18. Bc4
{[%clk 0:01:58.4]} 18... Qh3 {[%clk 0:00:55.2]} 19. Nb5 {[%clk 0:01:52]} 19...
Ne4 {[%clk 0:00:47]} 20. Qd5 {[%clk 0:01:39.2]} 20... Nxg5 {[%clk 0:00:43.2]}
21. hxg5 {[%clk 0:01:39.4]} 21... Qe6 {[%clk 0:00:35.6]} 22. Qh1 {[%clk
0:01:38.6]} 22... Qe7 {[%clk 0:00:28.8]} 23. Nc3 {[%clk 0:01:36.7]} 23... Nb4
{[%clk 0:00:20]} 24. a3 {[%clk 0:01:35.1]} 24... d5 {[%clk 0:00:19.7]} 25. Bd3
{[%clk 0:01:33.8]} 25... d4 {[%clk 0:00:19.1]} 26. Qxh7# {[%clk 0:01:32.2]} 1-0

[Event "*** Titled Tuesday Blitz"]
[Site "Chess.com"]
[Date "2020.05.19"]
[Round "10"]
[White "wanyaland"]
[Black "GoValya"]
[Result "1-0"]
[WhiteElo "2343"]
[BlackElo "2200"]
[TimeControl "180+1"]
[EndTime "13:54:57 PDT"]
[Termination "wanyaland won by resignation"]

1. e4 {[%clk 0:03:00.9]} 1... e6 {[%clk 0:02:59.8]} 2. d4 {[%clk 0:03:00.5]}
2... c5 {[%clk 0:02:59.6]} 3. Nf3 {[%clk 0:02:56.5]} 3... cxd4 {[%clk
0:02:59.2]} 4. Nxd4 {[%clk 0:02:57.4]} 4... Nc6 {[%clk 0:03:00]} 5. c4 {[%clk
0:02:56.8]} 5... Bc5 {[%clk 0:02:51.1]} 6. Nb3 {[%clk 0:02:54.4]} 6... Be7
{[%clk 0:02:48.1]} 7. Nc3 {[%clk 0:02:53.4]} 7... Nf6 {[%clk 0:02:47.8]} 8. Be3
{[%clk 0:02:52.4]} 8... O-O {[%clk 0:02:46.8]} 9. Be2 {[%clk 0:02:52.4]} 9... d6
{[%clk 0:02:46.7]} 10. O-O {[%clk 0:02:51.2]} 10... b6 {[%clk 0:02:47]} 11. Rc1
{[%clk 0:02:50.3]} 11... Bb7 {[%clk 0:02:46.6]} 12. f3 {[%clk 0:02:50.6]} 12...
Rc8 {[%clk 0:02:45.5]} 13. Nd4 {[%clk 0:02:48.4]} 13... Ne5 {[%clk 0:02:45.2]}
14. b3 {[%clk 0:02:47.9]} 14... a6 {[%clk 0:02:42.9]} 15. Qd2 {[%clk 0:02:46.9]}
15... Qc7 {[%clk 0:02:39.7]} 16. Rfd1 {[%clk 0:02:45.6]} 16... Rfd8 {[%clk
0:02:39.4]} 17. Kh1 {[%clk 0:02:45.8]} 17... h6 {[%clk 0:02:36.2]} 18. Bg1
{[%clk 0:02:45.5]} 18... Nc6 {[%clk 0:02:35]} 19. Nd5 {[%clk 0:02:42.2]} 19...
exd5 {[%clk 0:02:28.6]} 20. cxd5 {[%clk 0:02:40.9]} 20... Qd7 {[%clk 0:02:24]}
21. dxc6 {[%clk 0:02:35.6]} 21... Bxc6 {[%clk 0:02:23.7]} 22. Bxa6 {[%clk
0:02:35.5]} 22... Bb7 {[%clk 0:02:01.3]} 23. Bb5 {[%clk 0:02:30.8]} 23... Rxc1
{[%clk 0:01:50.8]} 24. Rxc1 {[%clk 0:02:24.9]} 24... Nxe4 {[%clk 0:01:42.9]} 25.
fxe4 {[%clk 0:02:20.4]} 25... Qg4 {[%clk 0:01:42.7]} 26. Nc6 {[%clk 0:02:14.3]}
26... Bxc6 {[%clk 0:01:39.5]} 27. Bxc6 {[%clk 0:02:14.4]} 27... Bg5 {[%clk
0:01:39.2]} 28. Be3 {[%clk 0:02:12.5]} 28... Bf6 {[%clk 0:01:37.1]} 29. h3
{[%clk 0:02:11.4]} 29... Qg3 {[%clk 0:01:36.4]} 30. Qf2 {[%clk 0:02:05.7]} 30...
Qe5 {[%clk 0:01:34.9]} 31. Bxb6 {[%clk 0:02:02.7]} 31... Rc8 {[%clk 0:01:34.3]}
32. a4 {[%clk 0:01:59.3]} 32... Bg5 {[%clk 0:01:25.6]} 33. Be3 {[%clk
0:01:57.3]} 33... Qa5 {[%clk 0:00:55.8]} 34. Bxg5 {[%clk 0:01:51.3]} 34... hxg5
{[%clk 0:00:55.9]} 35. Qf5 {[%clk 0:01:46.7]} 35... Qd2 {[%clk 0:00:51.8]} 36.
Qxc8+ {[%clk 0:01:43.9]} 36... Kh7 {[%clk 0:00:52]} 37. Bd5 {[%clk 0:01:43.8]}
1-0

[Event "*** Titled Tuesday Blitz"]
[Site "Chess.com"]
[Date "2020.05.19"]
[Round "10"]
[White "Mimsychess"]
[Black "boasovietica"]
[Result "0-1"]
[WhiteElo "2275"]
[BlackElo "2389"]
[TimeControl "180+1"]
[EndTime "13:54:58 PDT"]
[Termination "boasovietica won by resignation"]

1. d4 {[%clk 0:03:00.9]} 1... Nf6 {[%clk 0:02:59.7]} 2. c4 {[%clk 0:02:59.3]}
2... g6 {[%clk 0:02:59.2]} 3. Nc3 {[%clk 0:02:48.5]} 3... Bg7 {[%clk 0:02:59.1]}
4. e4 {[%clk 0:02:47.2]} 4... O-O {[%clk 0:02:59.4]} 5. Nf3 {[%clk 0:02:47.5]}
5... d6 {[%clk 0:02:59.9]} 6. Be2 {[%clk 0:02:47.9]} 6... Bg4 {[%clk 0:03:00.2]}
7. Be3 {[%clk 0:02:44.5]} 7... Nfd7 {[%clk 0:03:00.1]} 8. Ng1 {[%clk 0:02:43]}
8... Bxe2 {[%clk 0:02:59.1]} 9. Ngxe2 {[%clk 0:02:43.9]} 9... c5 {[%clk
0:02:58.6]} 10. d5 {[%clk 0:02:42.1]} 10... b5 {[%clk 0:02:56.3]} 11. cxb5
{[%clk 0:02:41.3]} 11... a6 {[%clk 0:02:56.4]} 12. a4 {[%clk 0:02:39.4]} 12...
axb5 {[%clk 0:02:55.7]} 13. axb5 {[%clk 0:02:39.2]} 13... Rxa1 {[%clk
0:02:50.2]} 14. Qxa1 {[%clk 0:02:40.1]} 14... Nb6 {[%clk 0:02:49.7]} 15. O-O
{[%clk 0:02:14]} 15... N8d7 {[%clk 0:02:49.2]} 16. h3 {[%clk 0:01:56.1]} 16...
Qc7 {[%clk 0:02:46.6]} 17. Qd1 {[%clk 0:01:46.2]} 17... Nc4 {[%clk 0:02:43]} 18.
Bc1 {[%clk 0:01:44.9]} 18... Ra8 {[%clk 0:02:42.2]} 19. Qb3 {[%clk 0:01:42.5]}
19... Nce5 {[%clk 0:02:36.7]} 20. Be3 {[%clk 0:01:34.9]} 20... c4 {[%clk
0:02:33.6]} 21. Qc2 {[%clk 0:01:32.9]} 21... Nd3 {[%clk 0:02:31.2]} 22. Nd4
{[%clk 0:01:32.5]} 22... N7c5 {[%clk 0:02:27]} 23. Nc6 {[%clk 0:01:27.8]} 23...
Kf8 {[%clk 0:02:01.8]} 24. Bg5 {[%clk 0:01:25.2]} 24... Bf6 {[%clk 0:01:49.2]}
25. Bxf6 {[%clk 0:01:22.7]} 25... exf6 {[%clk 0:01:50.1]} 26. f4 {[%clk
0:00:59.4]} 26... Re8 {[%clk 0:01:47.5]} 27. Ra1 {[%clk 0:00:58.1]} 27... Nxe4
{[%clk 0:01:42.7]} 28. Nxe4 {[%clk 0:00:49.6]} 28... Rxe4 {[%clk 0:01:42]} 29.
Ra6 {[%clk 0:00:37.2]} 29... Qb7 {[%clk 0:01:34.3]} 30. Ra8+ {[%clk 0:00:31.1]}
30... Qxa8 {[%clk 0:01:29.4]} 0-1

[Event "*** Titled Tuesday Blitz"]
[Site "Chess.com"]
[Date "2020.05.19"]
[Round "10"]
[White "maciek_92"]
[Black "DenisQ"]
[Result "0-1"]
[WhiteElo "2720"]
[BlackElo "2573"]
[TimeControl "180+1"]
[EndTime "13:55:05 PDT"]
[Termination "DenisQ won by resignation"]

1. c4 {[%clk 0:03:00.9]} 1... c6 {[%clk 0:02:58.7]} 2. Nc3 {[%clk 0:03:01.4]}
2... d5 {[%clk 0:02:58.5]} 3. d4 {[%clk 0:03:02.3]} 3... Nf6 {[%clk 0:02:58.2]}
4. e3 {[%clk 0:03:02.9]} 4... Bf5 {[%clk 0:02:56.6]} 5. Nf3 {[%clk 0:03:03.5]}
5... e6 {[%clk 0:02:56.3]} 6. Bd3 {[%clk 0:03:03.9]} 6... Bxd3 {[%clk
0:02:54.3]} 7. Qxd3 {[%clk 0:03:04.8]} 7... Nbd7 {[%clk 0:02:54.4]} 8. O-O
{[%clk 0:03:05]} 8... Be7 {[%clk 0:02:54.4]} 9. e4 {[%clk 0:03:05.6]} 9... dxe4
{[%clk 0:02:54.1]} 10. Nxe4 {[%clk 0:03:06.5]} 10... Nxe4 {[%clk 0:02:54.3]} 11.
Qxe4 {[%clk 0:03:07.4]} 11... Nf6 {[%clk 0:02:54.6]} 12. Qe2 {[%clk 0:03:08.1]}
12... O-O {[%clk 0:02:54.7]} 13. b3 {[%clk 0:03:08.7]} 13... Qa5 {[%clk
0:02:47.7]} 14. Bd2 {[%clk 0:03:07]} 14... Bb4 {[%clk 0:02:45.4]} 15. Bg5 {[%clk
0:03:07.5]} 15... Qf5 {[%clk 0:02:39.2]} 16. a3 {[%clk 0:03:06.3]} 16... Bd6
{[%clk 0:02:35.5]} 17. Rfe1 {[%clk 0:03:05.8]} 17... h6 {[%clk 0:02:34.7]} 18.
Bh4 {[%clk 0:03:04.9]} 18... Rad8 {[%clk 0:02:26.4]} 19. b4 {[%clk 0:03:05]}
19... Be7 {[%clk 0:02:07.2]} 20. Rad1 {[%clk 0:03:04.4]} 20... Rfe8 {[%clk
0:02:06.1]} 21. Ne5 {[%clk 0:03:03.9]} 21... Nd7 {[%clk 0:02:04.6]} 22. Bg3
{[%clk 0:03:03.8]} 22... Nxe5 {[%clk 0:02:03.5]} 23. dxe5 {[%clk 0:03:04]} 23...
Rxd1 {[%clk 0:01:58.7]} 24. Rxd1 {[%clk 0:03:04.9]} 24... Rd8 {[%clk 0:01:58.8]}
25. Rxd8+ {[%clk 0:03:04.5]} 25... Bxd8 {[%clk 0:01:58.5]} 26. Qd1 {[%clk
0:03:02.1]} 26... Bc7 {[%clk 0:01:56.3]} 27. f4 {[%clk 0:02:55.2]} 27... Qe4
{[%clk 0:01:54.8]} 28. c5 {[%clk 0:02:49.4]} 28... Qd5 {[%clk 0:01:47.9]} 29.
Qxd5 {[%clk 0:02:49.1]} 29... exd5 {[%clk 0:01:45.1]} 30. Kf2 {[%clk 0:02:47.6]}
30... f5 {[%clk 0:01:39.2]} 31. exf6 {[%clk 0:02:46.5]} 31... gxf6 {[%clk
0:01:38.7]} 32. Kf3 {[%clk 0:02:42.8]} 32... f5 {[%clk 0:01:36.5]} 33. Bh4
{[%clk 0:02:42.9]} 33... h5 {[%clk 0:01:24.5]} 34. g3 {[%clk 0:02:37.6]} 34...
Kf7 {[%clk 0:01:23.5]} 35. Ke3 {[%clk 0:02:38.1]} 35... Ke6 {[%clk 0:01:01.9]}
36. Kd4 {[%clk 0:02:36.2]} 36... a5 {[%clk 0:00:57.1]} 37. Bg5 {[%clk
0:02:35.5]} 37... axb4 {[%clk 0:00:54.4]} 38. axb4 {[%clk 0:02:36.4]} 38... b6
{[%clk 0:00:54.3]} 39. h3 {[%clk 0:02:32]} 39... bxc5+ {[%clk 0:00:50.9]} 40.
Kxc5 {[%clk 0:02:32.9]} 40... Bd6+ {[%clk 0:00:50.7]} 41. Kxc6 {[%clk
0:02:31.3]} 41... Bxb4 {[%clk 0:00:50.7]} 42. Kb5 {[%clk 0:02:31.8]} 42... Be1
{[%clk 0:00:49.6]} 43. Bh4 {[%clk 0:02:32.3]} 43... Kd6 {[%clk 0:00:35.4]} 44.
Bg5 {[%clk 0:02:26.3]} 44... Bxg3 {[%clk 0:00:34.4]} 45. Kb4 {[%clk 0:02:26.9]}
45... Be1+ {[%clk 0:00:33.3]} 46. Kb3 {[%clk 0:02:27.3]} 46... Kc5 {[%clk
0:00:33.1]} 47. Bf6 {[%clk 0:02:26.5]} 47... d4 {[%clk 0:00:30.6]} 48. Kc2
{[%clk 0:02:26.6]} 48... Kc4 {[%clk 0:00:30.9]} 49. Kd1 {[%clk 0:02:26.1]} 49...
Bg3 {[%clk 0:00:31]} 50. Be5 {[%clk 0:02:26]} 50... Kd3 {[%clk 0:00:31.3]} 51.
Kc1 {[%clk 0:02:24]} 51... Ke3 {[%clk 0:00:31.3]} 52. Kd1 {[%clk 0:02:17]} 52...
Bxf4 {[%clk 0:00:31.3]} 53. Bc7 {[%clk 0:02:17.6]} 53... Bxc7 {[%clk 0:00:30.9]}
0-1

[Event "*** Titled Tuesday Blitz"]
[Site "Chess.com"]
[Date "2020.05.19"]
[Round "10"]
[White "Tolya2"]
[Black "YellowJacek"]
[Result "1-0"]
[WhiteElo "2437"]
[BlackElo "2282"]
[TimeControl "180+1"]
[EndTime "13:55:11 PDT"]
[Termination "Tolya2 won by resignation"]

1. Nf3 {[%clk 0:03:00.9]} 1... c5 {[%clk 0:02:58.4]} 2. c4 {[%clk 0:02:57.6]}
2... Nc6 {[%clk 0:02:57.9]} 3. d4 {[%clk 0:02:56.6]} 3... cxd4 {[%clk 0:02:57]}
4. Nxd4 {[%clk 0:02:56.5]} 4... g6 {[%clk 0:02:55.6]} 5. e4 {[%clk 0:02:55.5]}
5... Bg7 {[%clk 0:02:55.2]} 6. Be3 {[%clk 0:02:55.3]} 6... Nf6 {[%clk
0:02:54.9]} 7. Nc3 {[%clk 0:02:55.2]} 7... O-O {[%clk 0:02:53.9]} 8. Be2 {[%clk
0:02:54.3]} 8... d6 {[%clk 0:02:52.7]} 9. Qd2 {[%clk 0:02:53.2]} 9... Nxd4
{[%clk 0:02:52.4]} 10. Bxd4 {[%clk 0:02:52.1]} 10... Bd7 {[%clk 0:02:52.4]} 11.
O-O {[%clk 0:02:49.8]} 11... Bc6 {[%clk 0:02:51.5]} 12. f3 {[%clk 0:02:48.6]}
12... Nd7 {[%clk 0:02:49.4]} 13. Bf2 {[%clk 0:02:41.8]} 13... a5 {[%clk
0:02:48.9]} 14. Rfd1 {[%clk 0:02:40.3]} 14... a4 {[%clk 0:02:45.7]} 15. Rab1
{[%clk 0:02:39.4]} 15... Qa5 {[%clk 0:02:44]} 16. Nd5 {[%clk 0:02:38.9]} 16...
Bxd5 {[%clk 0:02:39.4]} 17. cxd5 {[%clk 0:02:37.4]} 17... Qxd2 {[%clk
0:02:32.1]} 18. Rxd2 {[%clk 0:02:36.6]} 18... Rfc8 {[%clk 0:02:32.4]} 19. b4
{[%clk 0:02:24.2]} 19... axb3 {[%clk 0:02:10.6]} 20. axb3 {[%clk 0:02:18.5]}
20... Nc5 {[%clk 0:01:56.8]} 21. g3 {[%clk 0:02:15.6]} 21... Ra3 {[%clk
0:01:52]} 22. b4 {[%clk 0:02:11.9]} 22... Na4 {[%clk 0:01:51.4]} 23. Kg2 {[%clk
0:02:01.1]} 23... Nc3 {[%clk 0:01:40.8]} 24. Rc1 {[%clk 0:01:58.2]} 24... Rca8
{[%clk 0:01:38.2]} 25. Bf1 {[%clk 0:01:52]} 25... Bh6 {[%clk 0:01:10.5]} 26. f4
{[%clk 0:01:44.8]} 26... Nxe4 {[%clk 0:01:09.6]} 27. Re2 {[%clk 0:01:42.8]}
27... Nxf2 {[%clk 0:01:08.3]} 28. Kxf2 {[%clk 0:01:42.3]} 28... Ra2 {[%clk
0:01:01.2]} 29. Rc7 {[%clk 0:01:38.6]} 29... Rxe2+ {[%clk 0:00:59.1]} 30. Bxe2
{[%clk 0:01:37.4]} 30... Bf8 {[%clk 0:00:48.2]} 31. Rxb7 {[%clk 0:01:36.3]}
31... Ra3 {[%clk 0:00:47.1]} 32. b5 {[%clk 0:01:29.7]} 32... f5 {[%clk 0:00:47]}
33. Rb8 {[%clk 0:01:25.1]} 33... Kf7 {[%clk 0:00:46.9]} 34. b6 {[%clk 0:01:25]}
34... Rb3 {[%clk 0:00:46.9]} 35. b7 {[%clk 0:01:24.8]} 35... Bg7 {[%clk
0:00:47.2]} 36. Ba6 {[%clk 0:01:22.8]} 1-0

[Event "*** Titled Tuesday Blitz"]
[Site "Chess.com"]
[Date "2020.05.19"]
[Round "10"]
[White "Stormeman100100"]
[Black "silverback96"]
[Result "0-1"]
[WhiteElo "2511"]
[BlackElo "2328"]
[TimeControl "180+1"]
[EndTime "13:55:22 PDT"]
[Termination "silverback96 won by resignation"]

1. d4 {[%clk 0:03:00.9]} 1... Nf6 {[%clk 0:02:59.5]} 2. c4 {[%clk 0:03:00.9]}
2... c5 {[%clk 0:02:59.3]} 3. d5 {[%clk 0:03:00.8]} 3... e6 {[%clk 0:02:59.7]}
4. Nc3 {[%clk 0:03:00.5]} 4... exd5 {[%clk 0:03:00.1]} 5. cxd5 {[%clk
0:03:01.4]} 5... d6 {[%clk 0:03:00.7]} 6. e4 {[%clk 0:03:02.3]} 6... g6 {[%clk
0:03:01]} 7. f4 {[%clk 0:03:02.7]} 7... Bg7 {[%clk 0:03:01.9]} 8. Bb5+ {[%clk
0:03:02.8]} 8... Nfd7 {[%clk 0:03:02.5]} 9. Bd3 {[%clk 0:03:02.3]} 9... O-O
{[%clk 0:02:59.3]} 10. Nf3 {[%clk 0:03:02.2]} 10... c4 {[%clk 0:02:09.7]} 11.
Bxc4 {[%clk 0:02:58.1]} 11... Qb6 {[%clk 0:02:04.6]} 12. Qe2 {[%clk 0:02:54.7]}
12... Re8 {[%clk 0:02:03.2]} 13. Be3 {[%clk 0:02:54.4]} 13... Qa5 {[%clk
0:02:03.5]} 14. O-O {[%clk 0:02:45.1]} 14... Bxc3 {[%clk 0:02:02.2]} 15. bxc3
{[%clk 0:02:45]} 15... Rxe4 {[%clk 0:02:02.7]} 16. Qd3 {[%clk 0:02:41.1]} 16...
Nc5 {[%clk 0:01:53.4]} 17. Bxc5 {[%clk 0:02:40.8]} 17... Qxc5+ {[%clk
0:01:54.3]} 18. Kh1 {[%clk 0:02:41.2]} 18... Qxc4 {[%clk 0:01:54.3]} 19. Qb1
{[%clk 0:02:38.3]} 19... Rxf4 {[%clk 0:01:41.3]} 20. Re1 {[%clk 0:02:37.6]}
20... Qa4 {[%clk 0:01:36]} 21. Qc1 {[%clk 0:02:29]} 21... Na6 {[%clk 0:01:35]}
22. Nd4 {[%clk 0:02:21.6]} 22... Rf2 {[%clk 0:01:34.6]} 23. Qe3 {[%clk
0:02:18.2]} 23... Rb2 {[%clk 0:01:30.7]} 24. Nc6 {[%clk 0:02:09.2]} 24... bxc6
{[%clk 0:01:25.5]} 25. Qe8+ {[%clk 0:02:09.1]} 25... Kg7 {[%clk 0:01:25.9]} 26.
Rf1 {[%clk 0:02:09]} 26... Be6 {[%clk 0:01:22.3]} 27. Qxa8 {[%clk 0:02:06.8]}
27... Bxd5 {[%clk 0:01:22.4]} 28. Qd8 {[%clk 0:02:03.5]} 28... Bxg2+ {[%clk
0:01:20.8]} 29. Kg1 {[%clk 0:02:03.3]} 29... Bd5 {[%clk 0:01:19.1]} 30. Qf6+
{[%clk 0:02:01.4]} 30... Kh6 {[%clk 0:01:18.9]} 31. Qf4+ {[%clk 0:01:47.6]}
31... Qxf4 {[%clk 0:01:18.5]} 32. Rxf4 {[%clk 0:01:48.5]} 32... Rg2+ {[%clk
0:01:13.9]} 33. Kf1 {[%clk 0:01:47.7]} 33... Rxh2 {[%clk 0:01:14.4]} 34. Re1
{[%clk 0:01:44.8]} 34... Rh1+ {[%clk 0:01:14.3]} 35. Kf2 {[%clk 0:01:44.7]}
35... Rxe1 {[%clk 0:01:15.2]} 36. Kxe1 {[%clk 0:01:45.6]} 36... f5 {[%clk
0:01:15.9]} 37. Ra4 {[%clk 0:01:44.4]} 37... Nc5 {[%clk 0:01:15.4]} 38. Rxa7
{[%clk 0:01:44.3]} 38... f4 {[%clk 0:01:15.7]} 39. a4 {[%clk 0:01:43.6]} 39...
f3 {[%clk 0:01:15.9]} 40. a5 {[%clk 0:01:43.9]} 40... Nd3+ {[%clk 0:01:16.3]}
41. Kf1 {[%clk 0:01:42.8]} 41... Be6 {[%clk 0:01:16.7]} 42. Kg1 {[%clk
0:01:38.7]} 42... Bh3 {[%clk 0:01:17.6]} 43. Rf7 {[%clk 0:01:37.3]} 43... f2+
{[%clk 0:01:16.9]} 44. Kh2 {[%clk 0:01:37.7]} 44... Bc8 {[%clk 0:01:08.5]} 45.
Kg2 {[%clk 0:01:34.8]} 45... Ba6 {[%clk 0:01:08.5]} 46. Ra7 {[%clk 0:01:33]}
46... Bb5 {[%clk 0:01:06.8]} 47. Rb7 {[%clk 0:01:29.2]} 47... f1=Q+ {[%clk
0:01:04.1]} 48. Kxf1 {[%clk 0:01:27.8]} 48... Nc5+ {[%clk 0:01:04.2]} 49. c4
{[%clk 0:01:26.8]} 49... Bxc4+ {[%clk 0:01:03.8]} 50. Kf2 {[%clk 0:01:26.3]}
50... Nxb7 {[%clk 0:01:04.2]} 0-1

[Event "*** Titled Tuesday Blitz"]
[Site "Chess.com"]
[Date "2020.05.19"]
[Round "10"]
[White "FGHSMN"]
[Black "AnthonyWirig"]
[Result "0-1"]
[WhiteElo "2523"]
[BlackElo "2676"]
[TimeControl "180+1"]
[EndTime "13:55:26 PDT"]
[Termination "AnthonyWirig won by resignation"]

1. e4 {[%clk 0:03:00.9]} 1... g6 {[%clk 0:02:57.8]} 2. d4 {[%clk 0:03:00.5]}
2... Bg7 {[%clk 0:02:58.2]} 3. Nc3 {[%clk 0:03:00.6]} 3... c6 {[%clk 0:02:58.1]}
4. f4 {[%clk 0:02:59.6]} 4... d5 {[%clk 0:02:58.4]} 5. Nf3 {[%clk 0:02:59.5]}
5... dxe4 {[%clk 0:02:56.9]} 6. Nxe4 {[%clk 0:02:58.8]} 6... Nf6 {[%clk
0:02:51.4]} 7. Nxf6+ {[%clk 0:02:56.9]} 7... exf6 {[%clk 0:02:44.7]} 8. Bc4
{[%clk 0:02:56.3]} 8... O-O {[%clk 0:02:41.8]} 9. O-O {[%clk 0:02:55.8]} 9... f5
{[%clk 0:02:31.1]} 10. c3 {[%clk 0:02:52.9]} 10... Nd7 {[%clk 0:02:29.8]} 11. b3
{[%clk 0:02:46.5]} 11... Nb6 {[%clk 0:02:23.5]} 12. Bd3 {[%clk 0:02:40.5]} 12...
Re8 {[%clk 0:02:20.8]} 13. Qc2 {[%clk 0:02:38]} 13... c5 {[%clk 0:02:07.8]} 14.
dxc5 {[%clk 0:02:27.8]} 14... Nd5 {[%clk 0:02:05.2]} 15. Bd2 {[%clk 0:02:28.2]}
15... Qc7 {[%clk 0:01:54.1]} 16. b4 {[%clk 0:02:21.8]} 16... b6 {[%clk
0:01:50.4]} 17. Rae1 {[%clk 0:02:13.2]} 17... Bb7 {[%clk 0:01:41.4]} 18. cxb6
{[%clk 0:02:07.5]} 18... axb6 {[%clk 0:01:37.2]} 19. Ne5 {[%clk 0:02:02]} 19...
Nxf4 {[%clk 0:01:12.2]} 20. Bxf4 {[%clk 0:01:56]} 20... Bxe5 {[%clk 0:01:11.7]}
21. Rxe5 {[%clk 0:01:50.4]} 21... Rxe5 {[%clk 0:01:12.6]} 22. c4 {[%clk
0:01:39.4]} 22... Qe7 {[%clk 0:01:04.3]} 23. Bxe5 {[%clk 0:01:38.7]} 23... Qxe5
{[%clk 0:01:05.2]} 24. c5 {[%clk 0:01:29.3]} 24... bxc5 {[%clk 0:01:01.6]} 25.
bxc5 {[%clk 0:01:29.8]} 25... Bd5 {[%clk 0:00:56.9]} 26. a4 {[%clk 0:01:19.2]}
26... Qd4+ {[%clk 0:00:54]} 27. Kh1 {[%clk 0:01:17.7]} 27... Rxa4 {[%clk
0:00:53.1]} 28. c6 {[%clk 0:01:01.8]} 28... Ra2 {[%clk 0:00:46]} 29. Qxa2 {[%clk
0:00:55]} 29... Bxa2 {[%clk 0:00:45.6]} 30. c7 {[%clk 0:00:55.6]} 30... Qc5
{[%clk 0:00:38.6]} 0-1